bitfinex-derivatives/quotes_BTCF0:USTF0_20260221
["timestamp","ask_amount","ask_price","bid_price","bid_amount"]
[1771701539589,0.21936643,68639.0,68623.0,0.029152]
[1771701539892,0.21936643,68638.0,68623.0,0.029152]
[1771701540077,0.26058928,68640.0,68623.0,0.029152]
[1771701540274,0.21936808,68639.0,68623.0,0.029152]
[1771701540478,0.21936808,68638.0,68624.0,0.014576]
[1771701540778,0.26058928,68640.0,68624.0,0.014576]
[1771701540985,0.21936808,68639.0,68624.0,0.014576]
[1771701541187,0.21936808,68638.0,68624.0,0.014576]
[1771701541388,0.26058928,68640.0,68624.0,0.014576]
[1771701541586,0.21937095,68639.0,68624.0,0.014576]
[1771701541885,0.21937095,68638.0,68624.0,0.014576]
[1771701542078,0.26058928,68640.0,68624.0,0.014576]
[1771701542278,0.21937442,68639.0,68624.0,0.014576]
[1771701542489,0.21937442,68638.0,68624.0,0.014576]
[1771701542691,0.26058928,68640.0,68624.0,0.014576]
[1771701542993,0.21937442,68639.0,68624.0,0.014576]
[1771701543194,0.21937442,68638.0,68624.0,0.014576]
[1771701543393,0.26058928,68640.0,68624.0,0.014576]
[1771701543694,0.21937835,68639.0,68624.0,0.014576]
[1771701543892,0.21937835,68638.0,68624.0,0.014576]
[1771701544089,0.26058928,68640.0,68624.0,0.014576]
[1771701544292,0.21938288,68639.0,68624.0,0.014576]
[1771701544496,0.21938288,68638.0,68624.0,0.014576]
[1771701544700,0.26058928,68640.0,68624.0,0.014576]
[1771701544889,0.21938288,68639.0,68624.0,0.014576]
[1771701545092,0.21938288,68638.0,68624.0,0.014576]
[1771701545297,0.26058928,68640.0,68624.0,0.014576]
[1771701545497,0.21938385,68639.0,68624.0,0.014576]
[1771701545707,0.21938385,68638.0,68624.0,0.014576]
[1771701546000,0.26058928,68640.0,68624.0,0.014576]
[1771701546201,0.21938373,68639.0,68624.0,0.014576]
[1771701546394,0.21938373,68638.0,68624.0,0.014576]
[1771701546594,0.26058928,68640.0,68624.0,0.014576]
[1771701546794,0.21938413,68639.0,68624.0,0.014576]
[1771701547105,0.26058928,68640.0,68624.0,0.014576]
[1771701547901,0.26058928,68640.0,68622.0,0.014576]
[1771701548204,0.26058928,68640.0,68623.0,0.014576]
[1771701548502,0.26058928,68640.0,68624.0,0.014576]
[1771701550702,0.26058928,68640.0,68627.0,0.014575]
[1771701551006,0.26058928,68640.0,68626.0,0.014576]
[1771701553607,0.26058928,68640.0,68624.0,0.014576]
[1771701553608,0.26058928,68640.0,68625.0,0.014576]
[1771701553905,0.26058928,68640.0,68626.0,0.014576]
[1771701561411,0.31725142,68640.0,68614.0,0.014578]
[1771701561614,0.23487725,68638.0,68615.0,0.014578]
[1771701561914,0.23487725,68636.0,68615.0,0.014578]
[1771701562103,0.23487725,68634.0,68615.0,0.014578]
[1771701563611,0.014576,68623.0,68615.0,0.014578]
[1771701563805,0.029152,68623.0,68615.0,0.014578]
[1771701564208,0.014576,68622.0,68613.0,0.014578]
[1771701564408,0.014576,68622.0,68614.0,0.014578]
[1771701564712,0.014576,68622.0,68613.0,0.014578]
[1771701567310,0.014577,68622.0,68613.0,0.014578]
[1771701570019,0.014577,68622.0,68614.0,0.014578]
[1771701570718,0.014577,68622.0,68613.0,0.014578]
[1771701572722,0.014577,68622.0,68614.0,0.014578]
[1771701574016,0.014577,68621.0,68613.0,0.001]
[1771701574223,0.014577,68621.0,68613.0,0.014578]
[1771701578323,0.014577,68622.0,68613.0,0.014578]
[1771701581226,0.014576,68623.0,68614.0,0.014578]
[1771701581630,0.014576,68623.0,68613.0,0.19139969]
[1771701582731,0.014576,68623.0,68613.0,0.014578]
[1771701584029,0.014576,68622.0,68612.0,0.014579]
[1771701587034,0.014576,68622.0,68613.0,0.014578]
[1771701588125,0.014576,68623.0,68613.0,0.014578]
[1771701588829,0.014578,68614.0,68600.0,0.17682169]
[1771701589024,0.014579,68613.0,68602.0,0.01458]
[1771701589625,0.23257665,68622.0,68603.0,0.17682169]
[1771701589936,0.014577,68619.0,68610.0,0.17682169]
[1771701590625,0.014577,68619.0,68610.0,0.19140069]
[1771701591326,0.029154,68619.0,68611.0,0.014579]
[1771701591726,0.014577,68618.0,68611.0,0.014579]
[1771701592234,0.014574,68633.0,68622.0,0.014576]
[1771701592440,0.014575,68627.0,68621.0,0.014577]
[1771701594730,0.014573,68639.0,68624.0,0.014576]
[1771701594922,0.21935977,68638.0,68624.0,0.014576]
[1771701595126,0.21935977,68637.0,68624.0,0.014576]
[1771701595326,0.21935977,68636.0,68624.0,0.014576]
[1771701595532,0.21935977,68635.0,68623.0,0.014576]
[1771701595841,0.21935977,68634.0,68620.0,0.17682169]
[1771701596039,0.21935977,68633.0,68615.0,0.014578]
[1771701596244,0.21935977,68632.0,68620.0,0.17682169]
[1771701598536,0.014576,68624.0,68620.0,0.17682169]
[1771701598843,0.23257665,68653.0,68633.0,0.014574]
[1771701599033,0.21861164,68652.0,68640.0,0.17682169]
[1771701599240,0.48350845,68662.0,68645.0,0.014571]
[1771701599438,0.21844689,68661.0,68644.0,0.014572]
[1771701599640,0.45102354,68660.0,68643.0,0.014572]
[1771701599841,0.21844689,68659.0,68642.0,0.014572]
[1771701600036,0.21844689,68658.0,68643.0,0.014572]
[1771701600238,0.23257665,68652.0,68624.0,0.014576]
[1771701600545,0.23257665,68639.0,68621.0,0.014577]
[1771701600744,0.23257665,68639.0,68623.0,0.014576]
[1771701600933,0.23257665,68639.0,68622.0,0.014576]
[1771701601133,0.23257665,68639.0,68623.0,0.014576]
[1771701601337,0.23257665,68639.0,68624.0,0.014576]
[1771701601639,0.23257665,68639.0,68625.0,0.014576]
[1771701603942,0.23257665,68639.0,68624.0,0.014576]
[1771701604144,0.23257665,68639.0,68623.0,0.014576]
[1771701605244,0.23257665,68639.0,68622.0,0.014576]
[1771701609338,0.23257665,68639.0,68621.0,0.014577]
[1771701611845,0.17682169,68650.0,68622.0,0.014576]
[1771701612031,0.43678359,68649.0,68644.0,0.00088]
[1771701612350,0.22227855,68647.0,68625.0,0.014576]
[1771701613048,0.22227855,68647.0,68626.0,0.014576]
[1771701613443,0.22227855,68647.0,68626.0,0.029151]
[1771701614651,0.22227855,68647.0,68625.0,0.014576]
[1771701614949,0.22227855,68647.0,68624.0,0.014576]
[1771701615250,0.22227855,68647.0,68624.0,0.029152]
[1771701615551,0.22227855,68647.0,68625.0,0.014576]
[1771701615752,0.17682169,68640.0,68625.0,0.014576]
[1771701616550,0.39910024,68640.0,68625.0,0.014576]
[1771701616753,0.22227855,68640.0,68625.0,0.014576]
[1771701621056,0.22227855,68640.0,68634.0,0.00092]
[1771701621247,0.22227855,68640.0,68625.0,0.014576]
[1771701623156,0.22327855,68640.0,68625.0,0.014576]
[1771701623752,0.22227855,68640.0,68625.0,0.014576]
[1771701623959,0.22227855,68640.0,68624.0,0.014576]
[1771701626960,0.21086515,68639.0,68624.0,0.014576]
[1771701627152,0.22227855,68640.0,68624.0,0.014576]
[1771701627352,0.21093166,68639.0,68624.0,0.014576]
[1771701627557,0.22227855,68640.0,68624.0,0.014576]
[1771701627756,0.21093166,68639.0,68624.0,0.014576]
[1771701627960,0.22227855,68640.0,68624.0,0.014576]
[1771701628152,0.21093166,68639.0,68624.0,0.014576]
[1771701628353,0.21093166,68638.0,68624.0,0.014576]
[1771701628553,0.22227855,68640.0,68624.0,0.014576]
[1771701628756,0.21104747,68639.0,68624.0,0.014576]
[1771701628956,0.21104747,68638.0,68624.0,0.014576]
[1771701629156,0.21111743,68637.0,68624.0,0.014576]
[1771701629463,0.22227855,68640.0,68624.0,0.014576]
[1771701629660,0.21111743,68639.0,68624.0,0.014576]
[1771701629960,0.21111743,68638.0,68624.0,0.014576]
[1771701630161,0.21111743,68637.0,68624.0,0.014576]
[1771701630362,0.22227855,68640.0,68624.0,0.014576]
[1771701630668,0.21111651,68639.0,68624.0,0.014576]
[1771701630863,0.22227855,68640.0,68624.0,0.014576]
[1771701630864,0.21111651,68638.0,68624.0,0.014576]
[1771701631061,0.21111651,68637.0,68624.0,0.014576]
[1771701631365,0.22227855,68640.0,68624.0,0.014576]
[1771701631557,0.21111533,68639.0,68624.0,0.014576]
[1771701631758,0.22227855,68637.0,68623.0,0.014576]
[1771701642475,0.22227855,68637.0,68624.0,0.014576]
[1771701642666,0.22227855,68637.0,68625.0,0.014576]
[1771701643069,0.22227855,68637.0,68611.0,0.014579]
[1771701643267,0.05666173,68640.0,68607.0,0.014579]
[1771701643268,0.21741378,68635.0,68607.0,0.014579]
[1771701643569,0.21741378,68629.0,68604.0,0.01458]
[1771701643967,0.2110851,68628.0,68604.0,0.01458]
[1771701644168,0.21741378,68629.0,68604.0,0.02916]
[1771701644567,0.014579,68611.0,68605.0,0.01458]
[1771701644765,0.014579,68611.0,68604.0,0.01458]
[1771701644977,0.014579,68611.0,68601.0,0.014581]
[1771701645179,0.014579,68611.0,68606.0,0.01458]
[1771701645384,0.014579,68611.0,68604.0,0.01458]
[1771701645876,0.014579,68611.0,68605.0,0.01458]
[1771701646072,0.015579,68611.0,68605.0,0.01458]
[1771701646878,0.015579,68611.0,68604.0,0.01458]
[1771701647083,0.015579,68611.0,68605.0,0.01458]
[1771701648180,0.014579,68611.0,68605.0,0.01458]
[1771701649186,0.015579,68611.0,68604.0,0.01458]
[1771701650777,0.014579,68610.0,68604.0,0.01458]
[1771701650974,0.014578,68613.0,68605.0,0.01458]
[1771701651176,0.014579,68611.0,68605.0,0.01458]
[1771701651375,0.014579,68611.0,68603.0,0.02916]
[1771701651573,0.23199078,68620.0,68598.0,0.00014766]
[1771701651779,0.23199078,68620.0,68588.0,0.014584]
[1771701651780,0.014582,68596.0,68588.0,0.014584]
[1771701651981,0.014582,68594.0,68581.0,0.014585]
[1771701652184,0.014582,68596.0,68588.0,0.014584]
[1771701652482,0.014582,68597.0,68588.0,0.014584]
[1771701652687,0.014582,68596.0,68589.0,0.014583]
[1771701652887,0.01472542,68596.0,68589.0,0.014583]
[1771701653385,0.00014342,68596.0,68589.0,0.014583]
[1771701654083,0.01472542,68596.0,68589.0,0.014583]
[1771701654982,0.014582,68595.0,68588.0,0.014584]
[1771701655182,0.014582,68594.0,68588.0,0.014584]
[1771701655688,0.014583,68593.0,68577.0,0.014586]
[1771701655886,0.014583,68593.0,68587.0,0.014584]
[1771701656190,0.00014342,68596.0,68590.0,0.014583]
[1771701656884,0.01472542,68596.0,68590.0,0.014583]
[1771701657588,0.01472542,68596.0,68589.0,0.014583]
[1771701658587,0.014582,68595.0,68589.0,0.014583]
[1771701661587,0.014582,68595.0,68589.0,0.029166]
[1771701661891,0.014582,68598.0,68590.0,0.014583]
[1771701662592,0.014582,68596.0,68590.0,0.014583]
[1771701665489,0.014582,68596.0,68589.0,0.014583]
[1771701665490,0.014582,68596.0,68591.0,0.014583]
[1771701667083,0.014582,68596.0,68589.0,0.014583]
[1771701667084,0.014582,68595.0,68590.0,0.014583]
[1771701668387,0.014582,68594.0,68589.0,0.014583]
[1771701669688,0.014583,68593.0,68586.0,0.014584]
[1771701669891,0.014583,68593.0,68588.0,0.014584]
[1771701670884,0.015582,68594.0,68588.0,0.014584]
[1771701671086,0.014582,68594.0,68588.0,0.014584]
[1771701671288,0.014583,68593.0,68583.0,0.014585]
[1771701671491,0.014583,68593.0,68586.0,0.029168]
[1771701671692,0.014583,68593.0,68587.0,0.014584]
[1771701671892,0.014582,68594.0,68587.0,0.014584]
[1771701672195,0.54655249,68638.0,68592.0,0.014583]
[1771701672196,0.014581,68599.0,68592.0,0.014583]
[1771701672494,0.014581,68601.0,68594.0,0.014582]
[1771701672793,0.014581,68601.0,68595.0,0.014582]
[1771701672992,0.014581,68602.0,68596.0,0.014582]
[1771701673191,0.01458,68606.0,68599.0,0.014581]
[1771701673399,0.014581,68601.0,68595.0,0.014582]
[1771701673586,0.014581,68601.0,68596.0,0.014582]
[1771701675597,0.014581,68601.0,68594.0,0.014582]
[1771701675788,0.014581,68600.0,68594.0,0.014582]
[1771701675989,0.014582,68598.0,68593.0,0.014583]
[1771701676189,0.014581,68600.0,68593.0,0.014583]
[1771701676408,0.014581,68599.0,68594.0,0.014582]
[1771701676595,0.014581,68602.0,68594.0,0.014582]
[1771701676790,0.014581,68602.0,68595.0,0.014582]
[1771701676791,0.014581,68600.0,68595.0,0.014582]
[1771701682000,0.029162,68600.0,68594.0,0.014582]
[1771701683099,0.014581,68599.0,68594.0,0.014582]
[1771701684096,0.014581,68600.0,68594.0,0.014582]
[1771701685396,0.014581,68599.0,68594.0,0.014582]
[1771701685598,0.014581,68599.0,68593.0,0.014583]
[1771701686911,0.014582,68598.0,68592.0,0.014583]
[1771701687100,0.014582,68598.0,68590.0,0.014583]
[1771701687408,0.014582,68598.0,68591.0,0.014583]
[1771701688302,0.014581,68600.0,68593.0,0.014583]
[1771701688502,0.014581,68600.0,68593.0,0.029165]
[1771701688708,0.014581,68600.0,68593.0,0.029164]
[1771701689409,0.014582,68598.0,68591.0,0.014583]
[1771701689609,0.014582,68597.0,68591.0,0.014583]
[1771701689817,0.014582,68598.0,68592.0,0.014583]
[1771701690503,0.014581,68599.0,68592.0,0.014583]
[1771701691911,0.014581,68599.0,68592.0,0.029166]
[1771701692315,0.014581,68599.0,68592.0,0.014583]
[1771701692612,0.014582,68598.0,68592.0,0.014583]
[1771701692913,0.014582,68598.0,68592.0,0.029166]
[1771701693114,0.014581,68599.0,68593.0,0.014583]
[1771701695419,0.015581,68599.0,68593.0,0.014583]
[1771701701416,0.014581,68599.0,68593.0,0.014583]
[1771701704221,0.014581,68602.0,68595.0,0.029164]
[1771701704730,0.014581,68602.0,68596.0,0.014582]
[1771701706644,0.014581,68602.0,68597.0,0.014582]
[1771701710845,0.014581,68602.0,68598.0,0.014582]
[1771701711643,0.014581,68602.0,68597.0,0.014582]
[1771701711644,0.014581,68601.0,68597.0,0.014582]
[1771701711843,0.014581,68601.0,68593.0,0.014583]
[1771701712145,0.014581,68601.0,68596.0,0.014582]
[1771701712340,0.014581,68599.0,68594.0,0.014582]
[1771701712745,0.014581,68600.0,68595.0,0.014582]
[1771701714044,0.014581,68600.0,68594.0,0.015542]
[1771701714345,0.014581,68600.0,68594.0,0.014582]
[1771701715048,0.014581,68599.0,68594.0,0.014582]
[1771701715448,0.014581,68599.0,68592.0,0.014583]
[1771701715650,0.014581,68599.0,68593.0,0.014583]
[1771701716851,0.015581,68599.0,68593.0,0.014583]
[1771701718951,0.015581,68599.0,68592.0,0.014583]
[1771701718952,0.001,68599.0,68594.0,0.014582]
[1771701719156,0.014581,68602.0,68594.0,0.014582]
[1771701719451,0.014581,68601.0,68594.0,0.014582]
[1771701719953,0.014581,68601.0,68594.0,0.029164]
[1771701720346,0.014581,68600.0,68594.0,0.014582]
[1771701723148,0.014581,68599.0,68594.0,0.014582]
[1771701723956,0.014581,68600.0,68594.0,0.014582]
[1771701726757,0.029162,68600.0,68594.0,0.014582]
[1771701727051,0.014581,68600.0,68594.0,0.014582]
[1771701731757,0.014581,68600.0,68594.0,0.029164]
[1771701731957,0.01458,68604.0,68596.0,0.014582]
[1771701732257,0.014581,68602.0,68596.0,0.014582]
[1771701732961,0.014581,68601.0,68596.0,0.014582]
[1771701733464,0.014581,68600.0,68594.0,0.014582]
[1771701733669,0.014581,68601.0,68595.0,0.014582]
[1771701735663,0.014581,68601.0,68596.0,0.014582]
[1771701737558,0.014581,68601.0,68594.0,0.014582]
[1771701737759,0.014581,68599.0,68594.0,0.014582]
[1771701738764,0.014582,68598.0,68592.0,0.014583]
[1771701738956,0.014582,68597.0,68592.0,0.014583]
[1771701739160,0.014582,68597.0,68590.0,0.1915465]
[1771701739364,0.014582,68597.0,68590.0,0.014583]
[1771701739767,0.014582,68598.0,68592.0,0.014583]
[1771701744772,0.014582,68598.0,68591.0,0.014583]
[1771701745369,0.014582,68597.0,68590.0,0.029166]
[1771701745761,0.014582,68598.0,68591.0,0.014583]
[1771701745970,0.014582,68598.0,68592.0,0.014583]
[1771701747171,0.014582,68598.0,68591.0,0.014583]
[1771701747865,0.014582,68598.0,68590.0,0.014583]
[1771701747866,0.014582,68596.0,68588.0,0.014584]
[1771701748070,0.014582,68596.0,68589.0,0.014583]
[1771701748964,0.014582,68594.0,68586.0,0.014584]
[1771701749270,0.014582,68595.0,68588.0,0.015584]
[1771701749467,0.014582,68595.0,68585.0,0.014584]
[1771701749769,0.014583,68592.0,68585.0,0.014584]
[1771701750169,0.014583,68592.0,68584.0,0.014584]
[1771701750470,0.029166,68594.0,68587.0,0.014584]
[1771701750671,0.029166,68594.0,68589.0,0.001]
[1771701750870,0.014583,68593.0,68589.0,0.001]
[1771701751173,0.014583,68593.0,68587.0,0.014584]
[1771701751372,0.014583,68592.0,68585.0,0.015584]
[1771701751572,0.014583,68591.0,68585.0,0.015584]
[1771701751774,0.014583,68591.0,68584.0,0.014584]
[1771701752073,0.014583,68591.0,68584.0,0.029168]
[1771701752568,0.014583,68590.0,68584.0,0.014584]
[1771701753560,0.014583,68591.0,68584.0,0.014584]
[1771701753765,0.014584,68589.0,68583.0,0.014585]
[1771701753966,0.014584,68589.0,68580.0,0.014585]
[1771701754374,0.014584,68589.0,68582.0,0.014585]
[1771701754767,0.014584,68589.0,68583.0,0.014585]
[1771701755274,0.014584,68589.0,68580.0,0.014585]
[1771701755275,0.014584,68589.0,68582.0,0.014585]
[1771701755670,0.014584,68588.0,68582.0,0.014585]
[1771701756071,0.014584,68589.0,68582.0,0.014585]
[1771701756274,0.014584,68589.0,68582.0,0.02917]
[1771701756567,0.014584,68589.0,68583.0,0.014585]
[1771701756768,0.014583,68590.0,68582.0,0.014585]
[1771701756974,0.014584,68589.0,68582.0,0.014585]
[1771701757174,0.014584,68589.0,68580.0,0.014585]
[1771701757570,0.014584,68588.0,68581.0,0.014585]
[1771701758078,0.014583,68590.0,68583.0,0.014585]
[1771701758468,0.014583,68589.0,68583.0,0.014585]
[1771701758978,0.014583,68590.0,68583.0,0.014585]
[1771701759170,0.014583,68590.0,68573.0,0.014587]
[1771701759171,0.014584,68588.0,68581.0,0.014585]
[1771701759569,0.014584,68588.0,68582.0,0.014585]
[1771701759772,0.014584,68589.0,68582.0,0.014585]
[1771701760371,0.014584,68589.0,68583.0,0.014585]
[1771701760876,0.014584,68589.0,68582.0,0.014585]
[1771701761679,0.014584,68589.0,68583.0,0.014585]
[1771701761980,0.014583,68592.0,68585.0,0.014584]
[1771701762279,0.014583,68591.0,68585.0,0.014584]
[1771701762779,0.014583,68591.0,68584.0,0.014584]
[1771701763576,0.014583,68590.0,68584.0,0.014584]
[1771701763777,0.014583,68590.0,68579.0,0.014586]
[1771701763978,0.014583,68590.0,68583.0,0.014585]
[1771701767682,0.014583,68590.0,68583.0,0.02917]
[1771701767875,0.014583,68590.0,68583.0,0.014585]
[1771701768384,0.014584,68589.0,68582.0,0.014585]
[1771701768882,0.014584,68589.0,68583.0,0.014585]
[1771701769083,0.014583,68590.0,68583.0,0.014585]
[1771701770879,0.014584,68585.0,68578.0,0.014586]
[1771701771088,0.029169,68585.0,68578.0,0.014586]
[1771701771578,0.014585,68584.0,68578.0,0.014586]
[1771701772877,0.015585,68584.0,68578.0,0.014586]
[1771701773276,0.014585,68584.0,68578.0,0.014586]
[1771701773482,0.015585,68584.0,68578.0,0.014586]
[1771701773685,0.015585,68584.0,68578.0,0.029172]
[1771701774082,0.015585,68584.0,68579.0,0.014585]
[1771701774282,0.015585,68584.0,68578.0,0.014586]
[1771701774987,0.015585,68584.0,68579.0,0.014585]
[1771701776690,0.015585,68584.0,68571.0,0.014587]
[1771701777290,0.015585,68584.0,68579.0,0.014585]
[1771701777488,0.015585,68584.0,68577.0,0.014586]
[1771701777696,0.015585,68584.0,68574.0,0.014586]
[1771701777697,0.015585,68584.0,68578.0,0.029172]
[1771701777893,0.015585,68584.0,68578.0,0.014586]
[1771701778595,0.014585,68584.0,68579.0,0.014586]
[1771701780092,0.014584,68586.0,68578.0,0.014586]
[1771701780290,0.014584,68586.0,61519.0,0.04923122]
[1771701780291,0.014584,68588.0,68584.0,0.014584]
[1771701780496,0.014584,68589.0,68584.0,0.014584]
[1771701780796,0.014583,68591.0,68584.0,0.014584]
[1771701781494,0.014584,68588.0,68584.0,0.014584]
[1771701782586,0.014584,68588.0,68583.0,0.014585]
[1771701783700,0.014584,68587.0,68583.0,0.014585]
[1771701784397,0.014583,68590.0,68583.0,0.014585]
[1771701784398,0.014583,68593.0,68583.0,0.014585]
[1771701785098,0.014584,68588.0,68583.0,0.014585]
[1771701787302,0.014583,68593.0,68583.0,0.02917]
[1771701788300,0.014584,68589.0,68583.0,0.02917]
[1771701788494,0.014584,68588.0,68583.0,0.014585]
[1771701788694,0.014584,68588.0,68583.0,0.02917]
[1771701789102,0.014583,68589.0,68584.0,0.014585]
[1771701789298,0.014581,68602.0,68597.0,0.014582]
[1771701789497,0.20439145,68612.0,68596.0,0.014582]
[1771701789698,0.014581,68601.0,68596.0,0.014582]
[1771701789899,0.014581,68600.0,68595.0,0.014582]
[1771701790094,0.014581,68599.0,68594.0,0.014582]
[1771701791598,0.029163,68599.0,68594.0,0.014582]
[1771701791797,0.014582,68598.0,68594.0,0.014582]
[1771701794606,0.014582,68598.0,68592.0,0.014583]
[1771701795905,0.029164,68598.0,68592.0,0.014583]
[1771701796103,0.01458,68607.0,68596.0,0.014582]
[1771701796407,0.014581,68599.0,68595.0,0.014582]
[1771701797109,0.014581,68599.0,68594.0,0.014582]
[1771701800905,0.01458,68603.0,68594.0,0.014582]
[1771701801112,0.014581,68602.0,68595.0,0.014582]
[1771701801302,0.01458,68604.0,68595.0,0.014582]
[1771701801502,0.014581,68600.0,68595.0,0.014582]
[1771701802312,0.014581,68599.0,68595.0,0.014582]
[1771701802805,0.014581,68600.0,68596.0,0.014582]
[1771701803005,0.014581,68601.0,68596.0,0.014582]
[1771701803211,0.014579,68610.0,68596.0,0.014582]
[1771701803410,0.014581,68601.0,68596.0,0.014582]
[1771701804307,0.014581,68603.0,68597.0,0.014582]
[1771701804608,0.20687623,68615.0,68604.0,0.01458]
[1771701804609,0.014578,68613.0,68604.0,0.01458]
[1771701804804,0.58281558,68631.0,68613.0,0.029156]
[1771701805009,0.58281558,68631.0,68613.0,0.014578]
[1771701805010,0.42399725,68630.0,68613.0,0.014578]
[1771701805201,0.21712102,68629.0,68611.0,0.014579]
[1771701805405,0.21712102,68628.0,68612.0,0.014578]
[1771701805606,0.21712102,68627.0,68612.0,0.014578]
[1771701805805,0.21712102,68626.0,68612.0,0.014578]
[1771701806011,0.20687623,68630.0,68612.0,0.014578]
[1771701806205,0.21699602,68629.0,68612.0,0.014578]
[1771701806402,0.20687623,68630.0,68612.0,0.014578]
[1771701806403,0.21699602,68628.0,68612.0,0.014578]
[1771701806598,0.21699602,68627.0,68612.0,0.014578]
[1771701806804,0.21699602,68626.0,68611.0,0.014579]
[1771701807110,0.20687623,68629.0,68611.0,0.014579]
[1771701807298,0.21844075,68628.0,68611.0,0.014579]
[1771701807597,0.21844075,68627.0,68611.0,0.014579]
[1771701807798,0.20687623,68629.0,68611.0,0.014579]
[1771701808001,0.218385,68628.0,68612.0,0.014579]
[1771701808202,0.218385,68627.0,68612.0,0.014579]
[1771701808402,0.20687623,68629.0,68612.0,0.014579]
[1771701808597,0.42522269,68628.0,68612.0,0.014579]
[1771701808811,0.21834646,68627.0,68612.0,0.014579]
[1771701809013,0.20687623,68628.0,68612.0,0.014579]
[1771701809208,0.21834646,68627.0,68611.0,0.014579]
[1771701809404,0.20687623,68628.0,68611.0,0.014579]
[1771701810614,0.20687623,68628.0,68612.0,0.014578]
[1771701810916,0.37593935,68631.0,68618.0,0.17686347]
[1771701811708,0.37593935,68631.0,68619.0,0.014577]
[1771701812909,0.37593935,68631.0,68618.0,0.014577]
[1771701813518,0.37593935,68631.0,68620.0,0.17686347]
[1771701814323,0.37593935,68631.0,68620.0,0.19144047]
[1771701814614,0.20687623,68635.0,68620.0,0.19144047]
[1771701814814,0.20687623,68635.0,68620.0,0.17686347]
[1771701815904,0.20687623,68635.0,68619.0,0.014577]
[1771701817111,0.21804197,68634.0,68619.0,0.014577]
[1771701817315,0.21804197,68633.0,68619.0,0.014577]
[1771701817612,0.21804197,68632.0,68619.0,0.014577]
[1771701817812,0.20687623,68635.0,68619.0,0.014577]
[1771701818013,0.21803671,68634.0,68619.0,0.014577]
[1771701818213,0.21803671,68633.0,68619.0,0.014577]
[1771701818412,0.21803671,68632.0,68619.0,0.014577]
[1771701818622,0.20687623,68635.0,68619.0,0.014577]
[1771701818816,0.21804336,68634.0,68619.0,0.014577]
[1771701819015,0.21804336,68633.0,68619.0,0.014577]
[1771701819217,0.21804336,68632.0,68619.0,0.014577]
[1771701819518,0.21804336,68631.0,68619.0,0.014577]
[1771701819815,0.20687623,68635.0,68619.0,0.014577]
[1771701820009,0.21805849,68634.0,68619.0,0.014577]
[1771701820218,0.21805849,68633.0,68619.0,0.014577]
[1771701820420,0.21805849,68632.0,68619.0,0.014577]
[1771701820622,0.21805849,68631.0,68619.0,0.014577]
[1771701820822,0.20687623,68635.0,68619.0,0.014577]
[1771701821024,0.21804747,68634.0,68619.0,0.014577]
[1771701821216,0.21804747,68633.0,68619.0,0.014577]
[1771701821416,0.21804747,68632.0,68619.0,0.014577]
[1771701821617,0.21804747,68631.0,68619.0,0.014577]
[1771701821820,0.20687623,68635.0,68609.0,0.014579]
[1771701821821,0.20687623,68635.0,68626.0,0.014576]
[1771701822025,0.21803997,68634.0,68626.0,0.014576]
[1771701822327,0.20687623,68635.0,68624.0,0.014576]
[1771701822523,0.21802724,68634.0,68626.0,0.014575]
[1771701822823,0.20687623,68635.0,68626.0,0.014575]
[1771701823019,0.21802667,68634.0,68626.0,0.014575]
[1771701823324,0.46684,68651.0,68627.0,0.014575]
[1771701823518,0.46684,68651.0,68632.0,0.014574]
[1771701823519,0.20244948,68649.0,68632.0,0.014574]
[1771701823717,0.42047214,68648.0,68633.0,0.014574]
[1771701824019,0.42047214,68648.0,68632.0,0.014574]
[1771701824020,0.21802266,68647.0,68632.0,0.014574]
[1771701824224,0.21802266,68646.0,68632.0,0.014574]
[1771701824528,0.21802266,68645.0,68631.0,0.014575]
[1771701824713,0.21802266,68644.0,68631.0,0.014575]
[1771701824918,0.21802266,68643.0,68628.0,0.014575]
[1771701825118,0.21802266,68642.0,68629.0,0.014575]
[1771701825420,0.21802266,68641.0,68629.0,0.014575]
[1771701825718,0.20244948,68648.0,68629.0,0.014575]
[1771701825918,0.20244948,68646.0,68629.0,0.014575]
[1771701826229,0.42044487,68645.0,68629.0,0.014575]
[1771701826420,0.21799539,68644.0,68629.0,0.014575]
[1771701826719,0.21799539,68643.0,68629.0,0.014575]
[1771701826913,0.20244948,68645.0,68629.0,0.014575]
[1771701826914,0.21799539,68642.0,68629.0,0.014575]
[1771701827113,0.20244948,68645.0,68629.0,0.014575]
[1771701827518,0.20244948,68645.0,68630.0,0.014575]
[1771701829321,0.20244948,68645.0,68630.0,0.19143847]
[1771701829717,0.20244948,68645.0,68631.0,0.014575]
[1771701829931,0.20244948,68645.0,68632.0,0.014574]
[1771701830325,0.21810788,68644.0,68632.0,0.014574]
[1771701830525,0.20244948,68645.0,68632.0,0.014574]
[1771701830725,0.21810239,68644.0,68632.0,0.014574]
[1771701830925,0.20244948,68645.0,68632.0,0.014574]
[1771701831118,0.21810239,68644.0,68632.0,0.014574]
[1771701831322,0.20244948,68645.0,68632.0,0.014574]
[1771701831520,0.21816064,68644.0,68632.0,0.014574]
[1771701831718,0.20244948,68645.0,68632.0,0.014574]
[1771701831932,0.21816064,68644.0,68632.0,0.014574]
[1771701832233,0.20244948,68645.0,68632.0,0.014574]
[1771701832533,0.2182315,68644.0,68630.0,0.014575]
[1771701832728,0.20244948,68645.0,68630.0,0.014575]
[1771701832926,0.2182315,68644.0,68630.0,0.014575]
[1771701833127,0.20244948,68645.0,68630.0,0.014575]
[1771701833323,0.21832725,68644.0,68630.0,0.014575]
[1771701833523,0.21832725,68643.0,68630.0,0.014575]
[1771701833725,0.21832725,68642.0,68630.0,0.014575]
[1771701833925,0.21832725,68641.0,68630.0,0.014575]
[1771701834234,0.21845474,68640.0,68630.0,0.014575]
[1771701834524,0.20244948,68645.0,68630.0,0.014575]
[1771701834732,0.21845474,68644.0,68630.0,0.014575]